bitfinex-derivatives/quotes_SOLF0:USTF0_20241208
["timestamp","ask_amount","ask_price","bid_price","bid_amount"]
[1733659475942,1.86,235.66,235.55,4.88141563]
[1733659476146,1.86,235.66,235.56,4.61913425]
[1733659476347,1.86,235.66,235.57,2.75913425]
[1733659476650,2.1205,235.63,235.59,2.1207]
[1733659476855,1.86,235.66,235.6,1.06113282]
[1733659477152,1.86,235.66,235.54,40.91256351]
[1733659477347,1.86,235.66,235.55,2.75920591]
[1733659477550,1.86,235.66,235.56,2.75920591]
[1733659477754,1.86,235.66,235.57,1.06123304]
[1733659477955,1.86,235.66,235.58,1.06123304]
[1733659478155,2.1207,235.6,235.56,2.121]
[1733659478355,2.1207,235.6,235.57,1.06120437]
[1733659478550,2.1207,235.6,235.56,2.121]
[1733659478750,2.1207,235.6,235.57,1.0612143]
[1733659478945,2.1207,235.6,235.56,2.121]
[1733659478946,2.1207,235.6,235.58,1.06121798]
[1733659479154,2.1207,235.6,235.56,2.121]
[1733659479450,2.1207,235.6,235.57,1.06122083]
[1733659479648,2.1207,235.6,235.58,1.06122083]
[1733659479845,2.1209,235.59,235.55,2.1211]
[1733659480052,1.86,235.66,235.56,2.75916405]
[1733659480252,1.86,235.66,235.57,1.06121694]
[1733659480456,1.86,235.66,235.58,1.06121694]
[1733659480658,1.86,235.66,235.55,2.1211]
[1733659480957,1.86,235.66,235.56,1.06122834]
[1733659481253,2.1209,235.59,235.57,1.06122834]
[1733659481460,2.1209,235.59,235.55,2.1211]
[1733659481662,2.1209,235.59,235.56,1.06123535]
[1733659481955,2.1209,235.59,235.57,1.06123166]
[1733659482155,2.1209,235.59,235.55,2.1211]
[1733659482356,2.1209,235.59,235.56,1.06123094]
[1733659482559,1.326,235.71,235.57,1.06123094]
[1733659482861,1.86,235.68,235.58,2.75905086]
[1733659483057,2.1204,235.63,235.6,2.1207]
[1733659483559,2.1204,235.63,235.61,1.0611146]
[1733659483756,2.1205,235.62,235.59,2.1208]
[1733659483952,2.1205,235.62,235.6,1.06110856]
[1733659484152,2.1205,235.62,235.57,2.1209]
[1733659484361,2.1205,235.62,235.58,2.75895932]
[1733659484560,2.1205,235.62,235.59,1.0611382]
[1733659484761,2.1205,235.62,235.6,1.0611382]
[1733659484958,2.1205,235.62,235.57,2.1209]
[1733659485168,2.1205,235.62,235.58,2.1209]
[1733659485363,2.1205,235.62,235.59,1.06113763]
[1733659485558,2.1205,235.62,235.6,1.06113763]
[1733659485756,2.1205,235.62,235.58,2.1209]
[1733659485961,2.1205,235.62,235.59,1.06119516]
[1733659486165,2.1205,235.62,235.58,2.1209]
[1733659486358,2.1207,235.61,235.57,2.121]
[1733659486559,2.1207,235.61,235.58,1.06117593]
[1733659486760,2.1207,235.61,235.57,2.121]
[1733659486959,2.1207,235.61,235.58,1.06117874]
[1733659487262,2.1207,235.6,235.57,2.121]
[1733659487457,2.1207,235.6,235.58,1.06117727]
[1733659487658,2.1207,235.6,235.57,2.121]
[1733659487864,2.1206,235.62,235.58,1.06117729]
[1733659488166,1.86,235.63,235.58,2.1208]
[1733659488966,2.1205,235.62,235.58,2.1208]
[1733659490068,2.1206,235.61,235.58,2.1208]
[1733659492372,2.1206,235.61,235.59,1.06118386]
[1733659492573,2.1206,235.61,235.56,2.121]
[1733659492772,2.1206,235.61,235.54,40.91256351]
[1733659493371,2.1206,235.61,235.57,2.121]
[1733659493873,1.86,235.63,235.57,2.121]
[1733659494176,2.1207,235.6,235.58,2.75907804]
[1733659494374,2.1207,235.6,235.59,1.06118386]
[1733659496669,2.1207,235.6,235.56,2.1211]
[1733659496874,2.1207,235.6,235.57,2.75923144]
[1733659497071,2.1207,235.6,235.58,2.75923144]
[1733659497275,2.1207,235.6,235.59,1.06124286]
[1733659500270,2.1207,235.6,235.57,2.121]
[1733659500466,2.1207,235.6,235.58,2.75923728]
[1733659500668,2.1207,235.6,235.59,2.75923728]
[1733659500875,2.1207,235.6,235.59,1.06124511]
[1733659501278,2.1207,235.6,235.57,2.121]
[1733659501477,2.1207,235.6,235.58,1.06126056]
[1733659501677,2.1207,235.6,235.59,1.06126056]
[1733659503073,2.1213,235.55,235.5,1.48807716]
[1733659503380,1.86,235.63,235.51,4.8822596]
[1733659503680,1.86,235.63,235.52,4.8822596]
[1733659503872,1.86,235.63,235.53,2.75953803]
[1733659504173,2.1211,235.56,235.54,1.06136078]
[1733659504375,1.86,235.57,235.5,1.3826]
[1733659504576,1.86,235.56,235.51,2.75994377]
[1733659504882,1.86,235.56,235.52,2.75994377]
[1733659505172,1.86,235.56,235.53,1.06151683]
[1733659505372,1.86,235.56,235.54,1.06151683]
[1733659505573,1.86,235.56,235.5,2.1215]
[1733659505574,2.1213,235.55,235.5,2.1215]
[1733659505776,2.1213,235.55,235.51,2.75995718]
[1733659505976,2.1213,235.55,235.52,2.75995718]
[1733659506181,2.1213,235.55,235.53,1.06152199]
[1733659506381,2.1213,235.55,235.54,1.06152199]
[1733659508978,2.1213,235.55,235.54,2.75996425]
[1733659509274,2.1213,235.55,235.54,1.06152199]
[1733659510070,2.1216,235.51,235.46,40.66934727]
[1733659510275,3.9816,235.51,235.47,4.88365184]
[1733659510575,1.86,235.51,235.48,4.88365184]
[1733659510777,2.1216,235.5,235.49,2.76032495]
[1733659510978,2.1216,235.5,235.46,40.56387011]
[1733659511181,2.1216,235.5,235.47,4.88370651]
[1733659511378,2.1216,235.5,235.48,4.88370651]
[1733659511582,2.1216,235.5,235.49,2.76035168]
[1733659512179,2.1216,235.5,235.49,1.06167372]
[1733659512879,2.1216,235.5,235.49,2.7604408]
[1733659513078,2.1216,235.5,235.49,1.06167372]
[1733659513683,3.9815,235.51,235.49,1.06167372]
[1733659513877,3.9815,235.51,235.5,1.06167372]
[1733659514473,3.9815,235.51,235.5,1.061728]
[1733659515083,2.6889,235.61,235.5,1.061728]
[1733659515283,1.86,235.6,235.51,2.76036952]
[1733659515473,1.86,235.6,235.52,1.061728]
[1733659515679,1.86,235.6,235.53,1.061728]
[1733659515878,2.6889,235.61,235.54,1.06153468]
[1733659516078,1.86,235.6,235.51,2.1215]
[1733659516381,1.86,235.6,235.52,1.0615272]
[1733659516577,1.86,235.6,235.46,2.608]
[1733659516879,1.3608,235.61,235.47,4.88319207]
[1733659517084,29.34599394,235.62,235.48,4.98888173]
[1733659517379,3.9806,235.61,235.55,2.1211]
[1733659517582,3.9806,235.61,235.56,1.06156349]
[1733659517781,3.9806,235.61,235.55,2.1211]
[1733659517985,3.9806,235.61,235.56,1.06134547]
[1733659518181,3.9806,235.61,235.57,1.06134547]
[1733659518383,3.9806,235.61,235.56,2.121]
[1733659518585,3.9806,235.61,235.57,1.06133135]
[1733659518784,3.9806,235.61,235.56,2.121]
[1733659518984,1.3063,235.67,235.51,1.86]
[1733659518985,2.1205,235.63,235.57,1.06131577]
[1733659519184,2.1205,235.63,235.58,1.06131577]
[1733659519391,2.1205,235.63,235.59,1.06131577]
[1733659519579,2.1204,235.64,235.52,0.10568966]
[1733659519783,2.1204,235.64,235.53,4.88175386]
[1733659519978,2.1204,235.64,235.54,4.88175386]
[1733659520187,2.1204,235.64,235.55,4.88175386]
[1733659520387,2.1204,235.64,235.56,4.88168871]
[1733659520583,1.86,235.65,235.6,2.1207]
[1733659520785,2.1202,235.66,235.61,1.06125084]
[1733659520989,1.86,235.68,235.62,1.06125084]
[1733659521179,2.1201,235.67,235.6,2.1207]
[1733659521378,1.86,235.68,235.61,1.06112977]
[1733659521586,2.1201,235.67,235.62,1.06112977]
[1733659521787,1.86,235.68,235.57,3.2493]
[1733659521984,1.86,235.68,235.58,4.88112322]
[1733659522289,1.86,235.68,235.59,2.75889573]
[1733659522586,1.86,235.68,235.57,3.2493]
[1733659522587,1.86,235.68,235.6,1.06111374]
[1733659522786,2.1204,235.64,235.61,1.06111374]
[1733659522988,2.1204,235.64,235.57,3.5102]
[1733659523286,2.1204,235.64,235.58,2.75904078]
[1733659523489,2.1204,235.64,235.59,2.75904078]
[1733659523692,2.1204,235.63,235.6,1.06116953]
[1733659523887,2.1204,235.63,235.61,1.06116953]
[1733659524082,2.1204,235.63,235.57,3.5102]
[1733659524384,1.86,235.68,235.58,2.75901376]
[1733659524586,1.86,235.68,235.59,2.75901376]
[1733659524786,1.86,235.68,235.57,2.1209]
[1733659524986,1.86,235.68,235.58,2.75901415]
[1733659525192,1.86,235.68,235.57,2.1209]
[1733659525193,2.1205,235.62,235.59,2.75901415]
[1733659525387,2.1205,235.62,235.6,1.06115929]
[1733659525588,2.1205,235.62,235.57,2.1209]
[1733659525589,1.86,235.68,235.61,1.06115929]
[1733659525887,1.86,235.68,235.62,1.06115784]
[1733659526093,1.3832,235.72,235.55,2.7322]
[1733659526287,2.1201,235.67,235.62,2.1205]
[1733659526786,2.1199,235.69,235.64,2.1203]
[1733659527181,2.1199,235.69,235.65,1.06102579]
[1733659527392,3.9798,235.7,235.65,2.1202]
[1733659527592,3.9798,235.7,235.66,1.06095963]
[1733659527885,2.1198,235.7,235.67,1.06095963]
[1733659528090,2.1198,235.7,235.65,2.1202]
[1733659528287,2.1198,235.7,235.66,1.060904]
[1733659528493,2.1198,235.7,235.67,1.060904]
[1733659528693,2.1198,235.7,235.65,2.1202]
[1733659528885,2.1198,235.7,235.66,1.06091333]
[1733659529091,2.1198,235.7,235.65,2.1202]
[1733659529092,2.1198,235.7,235.67,1.06091333]
[1733659529389,2.1198,235.7,235.65,2.1202]
[1733659529593,2.1198,235.7,235.66,1.06091333]
[1733659529891,2.1198,235.7,235.67,1.06091333]
[1733659530084,2.1198,235.7,235.65,2.1202]
[1733659530290,2.1198,235.7,235.66,1.06091333]
[1733659530592,2.1198,235.7,235.65,2.1202]
[1733659530593,2.1198,235.7,235.67,1.06091333]
[1733659530794,2.1198,235.7,235.65,2.1202]
[1733659531390,2.1198,235.7,235.66,1.06091262]
[1733659531594,2.1198,235.7,235.65,2.1202]
[1733659532195,2.1198,235.7,235.66,1.06086047]
[1733659532391,2.1198,235.7,235.65,2.1202]
[1733659532594,2.1198,235.7,235.66,1.06086182]
[1733659532786,2.1198,235.7,235.65,2.1202]
[1733659532986,1.86,235.72,235.67,2.12]
[1733659532987,3.9797,235.72,235.67,2.12]
[1733659533191,3.9797,235.72,235.6,0.10528637]
[1733659533399,3.9797,235.72,235.61,4.87964087]
[1733659533585,3.9797,235.72,235.62,4.87964087]
[1733659533792,3.9797,235.72,235.63,4.87964087]
[1733659534092,3.9797,235.72,235.64,4.87964087]
[1733659534297,3.9797,235.72,235.65,2.75805788]
[1733659534499,1.86,235.72,235.66,2.75805788]
[1733659534692,1.3747,235.78,235.67,1.06079149]
[1733659534896,1.2976,235.81,235.64,1.86]
[1733659534897,1.2976,235.81,235.68,2.75780532]
[1733659535095,1.86,235.8,235.69,2.75779394]
[1733659535398,1.86,235.8,235.7,1.06079149]
[1733659535597,1.86,235.8,235.71,1.06079149]
[1733659535792,1.86,235.8,235.69,1.86]
[1733659535991,1.86,235.8,235.7,1.06059815]
[1733659536193,2.1191,235.78,235.71,1.06059815]
[1733659536398,2.1191,235.78,235.73,2.1195]
[1733659537900,2.1191,235.78,235.69,1.86]
[1733659537901,1.86,235.79,235.69,1.86]
[1733659538092,3.979,235.79,235.74,2.1194]
[1733659538496,1.86,235.79,235.74,2.1194]
[1733659539699,1.86,235.79,235.65,4.0184]
[1733659539901,1.86,235.79,235.66,1.06064247]
[1733659540097,1.86,235.79,235.65,4.5483]
[1733659540300,3.9217,235.78,235.66,2.1201]
[1733659540604,3.9217,235.78,235.62,1.86]
[1733659541802,2.1199,235.69,235.64,2.1203]
[1733659542698,2.1199,235.69,235.61,1.86]
[1733659542906,2.1199,235.69,235.62,1.06084777]
[1733659543093,2.1199,235.69,235.59,1.86]
[1733659543298,2.1199,235.69,235.6,2.75820233]
[1733659543500,2.1198,235.7,235.66,2.1201]
[1733659543809,1.86,235.71,235.59,1.86]
[1733659544101,1.86,235.71,235.6,2.7580468]
[1733659544299,1.86,235.71,235.61,1.06078723]
[1733659544502,2.1199,235.7,235.64,2.1203]
[1733659544697,2.1199,235.7,235.59,1.86]
[1733659544904,2.1199,235.7,235.6,2.75808219]
[1733659545100,2.1199,235.7,235.61,1.06080084]
[1733659545299,2.1199,235.7,235.62,1.06080084]
[1733659545492,2.1199,235.7,235.65,2.1202]
[1733659545697,1.86,235.71,235.59,1.86]
[1733659545905,1.86,235.71,235.6,2.7581422]
[1733659546104,1.86,235.71,235.61,1.06082392]
[1733659546301,1.86,235.71,235.59,1.86]
[1733659546503,1.86,235.71,235.63,2.1204]
[1733659546504,2.1201,235.68,235.63,2.1204]
[1733659546806,2.1201,235.68,235.53,1.06085385]
[1733659546807,1.86,235.71,235.58,1.86]
[1733659547005,2.1203,235.65,235.59,4.88027613]
[1733659547202,2.1203,235.65,235.6,2.75839772]
[1733659547504,2.1203,235.65,235.61,1.06089499]
[1733659547706,2.1203,235.65,235.62,1.06089499]
[1733659547902,2.1203,235.65,235.56,1.86]
[1733659548096,3.9802,235.66,235.57,4.88038515]
[1733659548297,3.9802,235.66,235.56,1.86]
[1733659548298,3.9802,235.66,235.58,4.88038515]
[1733659548503,3.9802,235.66,235.59,2.75847856]
[1733659548709,3.9802,235.66,235.56,1.86]
[1733659548710,2.1201,235.68,235.6,2.75847856]
[1733659549007,2.1201,235.68,235.61,2.75847856]
[1733659549008,3.9801,235.68,235.61,2.75847856]
[1733659549309,3.9801,235.68,235.62,1.06095329]
[1733659549503,1.86,235.68,235.63,1.06095329]
[1733659549706,1.86,235.68,235.56,1.86]
[1733659550010,1.86,235.68,235.57,4.88034398]
[1733659550306,1.86,235.68,235.58,4.88034398]
[1733659550501,1.86,235.68,235.59,2.75845529]
[1733659550694,1.86,235.68,235.6,2.75845529]
[1733659550904,1.86,235.68,235.61,1.06094434]
[1733659551100,1.86,235.68,235.55,41.65522421]
[1733659551399,1.86,235.68,235.56,1.06107808]
[1733659551702,1.86,235.68,235.57,1.06107808]
[1733659551703,3.9949,235.67,235.57,1.06107808]
[1733659551909,2.1208,235.59,235.53,2.1213]
[1733659552105,1.86,235.6,235.54,1.06130905]
[1733659552408,1.88,235.59,235.55,1.06135371]
[1733659552613,1.88,235.58,235.52,2.1214]
[1733659552907,1.88,235.58,235.53,1.06138047]
[1733659553108,2.121,235.57,235.52,2.1214]
[1733659553308,2.121,235.57,235.53,1.06142119]
[1733659553505,1.88,235.58,235.5,2.1215]
[1733659553708,2.1211,235.56,235.51,1.06142493]
[1733659553904,2.1211,235.56,235.52,1.06142493]
[1733659554099,2.1211,235.56,235.51,2.1215]
[1733659554305,2.1211,235.56,235.52,1.06142669]
[1733659554611,2.1211,235.56,235.51,2.1215]
[1733659554806,2.1211,235.56,235.52,1.06142657]
[1733659555103,2.1211,235.56,235.52,2.1214]
[1733659555309,2.1211,235.56,235.53,1.06142629]
[1733659555507,2.1211,235.56,235.52,2.1214]
[1733659555709,2.1211,235.56,235.53,1.0614302]
[1733659555906,2.1211,235.56,235.52,2.1214]
[1733659556210,2.1211,235.56,235.53,1.06142555]
[1733659556405,2.121,235.57,235.46,1.98257463]
[1733659556609,2.121,235.57,235.47,4.88255753]
[1733659556809,2.121,235.57,235.48,4.88255753]
[1733659557009,2.121,235.57,235.49,4.88255753]
[1733659557208,2.121,235.57,235.5,2.75970643]
[1733659557510,2.121,235.57,235.51,2.75970643]
[1733659557706,2.121,235.57,235.53,2.1213]
[1733659560002,1.88,235.58,235.53,2.1213]
[1733659560003,4.0009,235.58,235.54,1.0614373]
[1733659560203,4.0009,235.58,235.53,2.1213]
[1733659560409,4.0009,235.58,235.54,1.06141845]
[1733659560609,4.0009,235.58,235.55,1.06141845]
[1733659560812,4.0009,235.58,235.53,2.1213]
[1733659561008,4.0009,235.58,235.54,1.06141625]
[1733659561204,2.121,235.57,235.52,2.1214]
[1733659561408,2.121,235.57,235.53,1.06143976]
[1733659561608,2.121,235.57,235.54,1.06143976]
[1733659561810,2.121,235.57,235.55,1.06143976]
[1733659562011,2.121,235.57,235.52,2.1214]
[1733659562211,2.1211,235.56,235.53,1.06146348]
[1733659562411,2.1211,235.56,235.54,1.06146348]
[1733659562712,2.1211,235.56,235.47,0.10281835]
[1733659562907,2.1211,235.56,235.48,4.88275949]
[1733659563114,2.1211,235.56,235.49,4.88275949]
[1733659563309,2.1211,235.56,235.5,4.88275949]
[1733659563515,2.1211,235.56,235.51,2.75982058]
[1733659563711,2.1211,235.56,235.52,4.88122058]
[1733659563913,2.1211,235.56,235.53,1.06146945]
[1733659564113,2.1211,235.56,235.54,1.06146945]
[1733659564312,2.1211,235.56,235.52,2.1214]
[1733659564511,2.1211,235.56,235.53,1.06146823]
[1733659564715,2.1211,235.56,235.54,1.06146823]
[1733659564915,2.1211,235.56,235.52,2.1214]
[1733659565116,2.1211,235.56,235.53,1.0614662]
[1733659565409,2.1211,235.56,235.54,1.0614662]
[1733659565615,2.1211,235.56,235.52,2.1214]
[1733659565815,2.1211,235.56,235.53,1.06146426]
[1733659566021,2.1211,235.56,235.54,1.06146426]
[1733659566221,2.1211,235.56,235.52,2.1214]
[1733659566615,2.1211,235.56,235.53,1.06146307]
[1733659566819,2.1211,235.56,235.52,2.1214]
[1733659567118,2.1211,235.56,235.53,1.06149731]
[1733659567318,1.88,235.58,235.52,2.1214]
[1733659567514,2.1211,235.55,235.53,1.06149821]
[1733659567710,2.1211,235.55,235.52,2.1214]
[1733659567922,2.1211,235.55,235.53,1.061497]
[1733659568214,2.1211,235.55,235.52,2.1214]
[1733659568414,2.1211,235.55,235.53,1.06149331]
[1733659568619,2.1211,235.55,235.5,2.1215]
[1733659568819,2.1213,235.54,235.51,2.75988261]
[1733659569020,2.1213,235.54,235.52,1.06149331]
[1733659569316,2.1213,235.54,235.53,1.06149331]
[1733659569516,1.2771,235.57,235.46,1.88]
[1733659569720,1.2771,235.57,235.47,4.88331977]
[1733659569917,2.1215,235.52,235.48,2.1218]
[1733659570114,1.2771,235.57,235.49,2.76013741]
[1733659570313,1.2771,235.57,235.51,2.1214]
[1733659570514,2.1211,235.56,235.52,1.06159131]
[1733659570712,2.1211,235.56,235.53,1.06159131]
[1733659570917,2.1211,235.56,235.46,0.10294044]
[1733659571125,2.121,235.57,235.52,2.1213]
[1733659571318,2.121,235.57,235.53,1.06146853]
[1733659571520,2.121,235.57,235.52,2.1213]
[1733659571819,2.121,235.57,235.53,1.06146545]
[1733659572021,2.121,235.57,235.52,2.1213]
[1733659572317,2.121,235.57,235.53,1.06146176]
[1733659572518,2.121,235.57,235.53,2.1213]
[1733659573315,2.121,235.57,235.46,0.10294044]
[1733659573520,2.121,235.57,235.54,2.1212]
[1733659574322,2.121,235.57,235.53,2.1213]
[1733659576229,1.88,235.58,235.46,0.10294044]
[1733659576429,1.88,235.6,235.49,1.88]
[1733659576622,1.88,235.6,235.5,4.88254651]
[1733659576921,1.88,235.6,235.51,2.75970222]
[1733659577227,2.1208,235.59,235.54,2.1212]
[1733659577522,1.88,235.6,235.49,1.88]
[1733659577728,1.88,235.6,235.5,4.88218283]
[1733659577930,1.88,235.63,235.51,4.88213388]
[1733659578123,1.88,235.63,235.52,2.75949464]
[1733659578323,1.88,235.63,235.53,2.75949464]
[1733659578626,1.88,235.63,235.54,1.06134409]
[1733659578929,2.1205,235.62,235.58,2.1208]
[1733659579223,1.88,235.63,235.49,3.203]
[1733659579425,2.1204,235.64,235.61,2.1206]
[1733659579626,1.88,235.65,235.61,2.1206]
[1733659580723,4.0003,235.65,235.61,2.1206]
[1733659581724,1.88,235.65,235.54,1.88]
[1733659582023,3.9801,235.67,235.63,2.1204]
[1733659582226,2.1201,235.67,235.63,2.1204]
[1733659582425,2.12,235.68,235.55,0.10294044]
[1733659582726,3.98,235.68,235.56,4.98355497]
[1733659582922,2.12,235.68,235.6,2.1207]
[1733659583128,2.12,235.68,235.57,4.88061453]
[1733659583129,1.86,235.7,235.61,2.75860821]
[1733659583320,1.86,235.69,235.62,2.75860821]
[1733659583521,1.2911,235.76,235.63,1.06100316]
[1733659583725,1.86,235.75,235.64,1.06100316]
[1733659583924,1.86,235.75,235.59,1.86]
[1733659584124,2.1196,235.72,235.67,2.1201]
[1733659586323,1.86,235.72,235.59,1.96273069]
[1733659586525,1.2911,235.76,235.61,0.10273069]
[1733659586726,1.86,235.73,235.62,4.98253125]
[1733659586926,1.86,235.73,235.63,4.87980056]
[1733659587124,1.86,235.73,235.64,6.73980056]
[1733659587330,1.86,235.73,235.65,4.87980056]
[1733659587631,1.86,235.73,235.66,2.75814814]
[1733659587823,1.86,235.73,235.64,1.86]
[1733659587824,1.86,235.73,235.67,2.75814814]
[1733659588021,1.86,235.73,235.68,1.06082621]
[1733659588224,1.86,235.73,235.69,1.06082621]
[1733659588424,1.86,235.73,235.61,1.96273069]
[1733659588425,1.86,235.73,235.61,1.86]
[1733659588628,1.86,235.73,235.62,4.87949956]
[1733659588827,2.1198,235.7,235.64,2.1203]
[1733659589131,2.1198,235.7,235.65,1.06076077]
[1733659589333,2.1198,235.7,235.66,1.06076077]
[1733659589536,2.1198,235.7,235.65,2.1203]
[1733659589734,2.1198,235.7,235.66,1.06084112]
[1733659589936,2.1198,235.7,235.65,2.1203]
[1733659590130,2.1198,235.7,235.66,1.0608448]
[1733659590332,2.1198,235.7,235.65,2.1203]
[1733659590630,2.1199,235.69,235.66,1.06084554]
[1733659590834,2.1199,235.69,235.65,2.1203]
[1733659591633,2.1199,235.69,235.57,0.10272554]
[1733659591634,1.86,235.68,235.57,0.10272554]
[1733659592134,2.1204,235.64,235.58,2.75858029]
[1733659592327,2.1204,235.64,235.59,1.06099242]
[1733659592533,2.1204,235.64,235.6,1.06099242]
[1733659592733,2.1204,235.64,235.61,1.06099242]
[1733659592938,2.1204,235.64,235.56,1.86]
[1733659593137,2.1204,235.64,235.57,2.75882464]
[1733659593437,2.1204,235.64,235.58,2.75882464]
[1733659593638,2.1204,235.64,235.6,2.1207]
[1733659596039,1.86,235.68,235.56,1.86]
[1733659596040,2.1205,235.63,235.56,1.86]
[1733659596235,2.1205,235.63,235.57,2.75882673]
[1733659596434,2.1205,235.63,235.58,2.75882673]
[1733659596744,2.1205,235.63,235.59,1.0610872]
[1733659597043,2.1205,235.63,235.6,1.0610872]
[1733659597235,2.1205,235.63,235.56,1.86]
[1733659597435,2.1205,235.63,235.57,2.75883631]
[1733659597640,2.1205,235.63,235.59,2.1208]
[1733659597841,2.1205,235.63,235.6,1.06109089]
[1733659598038,2.1205,235.63,235.59,2.1208]
[1733659598239,2.1205,235.63,235.6,3.18178352]
[1733659598437,2.1205,235.63,235.6,2.1207]
[1733659599334,2.1205,235.63,235.61,2.75885829]
[1733659599534,2.1205,235.63,235.62,1.06109934]
[1733659601435,2.1204,235.64,235.62,1.06109934]
[1733659601739,1.86,235.68,235.63,3.18149934]
[1733659601939,3.98,235.68,235.64,1.06109934]
[1733659602145,1.86,235.71,235.65,1.06109934]
[1733659602338,1.86,235.71,235.66,1.06109934]
[1733659602541,1.86,235.71,235.6,1.86]
[1733659602736,1.86,235.71,235.62,2.1205]
[1733659602936,1.86,235.71,235.63,1.0609714]
[1733659603141,1.86,235.71,235.64,1.0609714]
[1733659603447,2.1202,235.67,235.65,1.06101027]
[1733659603637,1.86,235.71,235.57,1.96301858]
[1733659603836,1.86,235.71,235.58,4.88069075]
[1733659604137,1.86,235.71,235.59,4.88069075]
[1733659604335,1.86,235.71,235.6,4.88069075]
[1733659604543,2.12,235.68,235.62,2.1205]
[1733659604742,1.86,235.71,235.63,2.75865129]
[1733659604936,1.2911,235.76,235.64,2.75865129]
[1733659605142,1.2911,235.76,235.57,1.86]
[1733659605143,1.86,235.75,235.65,1.06101973]
[1733659605349,1.86,235.75,235.66,1.06101973]
[1733659605551,1.86,235.75,235.58,0.10301858]
[1733659605742,1.86,235.75,235.59,4.8804979]
[1733659605948,1.86,235.75,235.61,2.1206]
[1733659606151,1.86,235.75,235.62,2.75854229]
[1733659606352,1.86,235.75,235.63,1.0609778]
[1733659606553,2.1204,235.65,235.6,2.1207]
[1733659606755,1.86,235.66,235.61,1.0610867]
[1733659606956,1.86,235.66,235.62,1.0610867]
[1733659607149,1.86,235.66,235.6,2.1207]
[1733659607345,1.86,235.66,235.61,1.0610867]
[1733659607553,2.1203,235.65,235.62,1.0610867]
[1733659607748,1.86,235.66,235.6,2.1207]
[1733659607952,1.86,235.66,235.61,1.06109775]
[1733659608153,1.86,235.66,235.62,1.06109775]
[1733659608347,1.86,235.66,235.6,2.1207]
[1733659608553,1.86,235.66,235.61,1.0610985]
[1733659608753,2.1204,235.64,235.62,1.0610985]
[1733659608949,2.1204,235.64,235.6,2.1207]
[1733659609151,2.1204,235.64,235.61,1.0610985]
[1733659609655,2.1204,235.64,235.62,1.0610985]
[1733659609851,2.1204,235.64,235.6,2.1207]
[1733659609852,1.86,235.66,235.63,1.0610985]
[1733659610047,1.86,235.66,235.55,0.10292611]
[1733659610252,1.86,235.66,235.56,4.88100887]
[1733659610453,2.1203,235.65,235.6,2.1206]
[1733659610658,2.1203,235.65,235.61,2.7588311]
[1733659610848,2.1203,235.65,235.62,2.7588311]
[1733659611052,1.86,235.66,235.63,1.06108888]
[1733659611253,1.86,235.66,235.64,1.06108888]
[1733659611554,1.86,235.66,235.65,1.06108888]
[1733659612552,3.9802,235.66,235.58,0.10293351]
[1733659612756,3.9802,235.66,235.59,4.88061335]
[1733659612957,3.9802,235.66,235.6,4.88061335]
[1733659613154,2.1202,235.65,235.61,4.87910531]
[1733659613459,2.1202,235.65,235.62,2.75860531]
[1733659613658,2.1202,235.65,235.63,2.75860531]
[1733659613860,2.1202,235.65,235.64,1.06099888]
[1733659614361,2.1202,235.65,235.56,0.10293351]
[1733659614559,2.1202,235.65,235.62,2.1205]
[1733659614856,2.1202,235.65,235.63,1.06100352]
[1733659615056,2.1202,235.65,235.62,2.1205]
[1733659615257,2.1202,235.65,235.63,1.06100054]
[1733659615458,1.2911,235.76,235.64,1.06100054]
[1733659615755,1.2911,235.76,235.59,1.86]